Cogmind - Beta 10.2 @@@ ROGUE MODE // 2021.08.26 @ 18:27:00 Player: Luigi Panache Result: Destroyed by S-43 Plague with Heavy Machine Gun Performance ------------- Evolutions (8) 4000 Regions Visited (23) 4600 Robots Destroyed (335) 1675 Value Destroyed (16963) 16963 Prototype IDs (41) 820 Alien Tech Used (3) 600 Bonus (12172) 12172 TOTAL SCORE: 40830 Bonus ------- High Alert Combat Kills 3101 Follower Combat Kills 2117 Entered Garrisons 200 Network Hubs Disabled 200 Met Warlord at Base 500 MAIN.C Attacked Warlord 500 Built Enhanced Grunts 300 A7 Reached Mainframe 300 Met R17 at Cetus 500 Met R17 at Research 2000 Met Warlord at Research 2000 Scanned by Researcher 500 Friendly Fire -46 Cogmind --------- Core Integrity 0/1450 Matter 22/300 Energy 100/100 System Corruption 20% Temperature Cool (0) Movement Core (550) Ox10 Location -2/Garrison Parts ------- > --- POWER (3) -------- (None) > --- PROPULSION (6) --- (None) > --- UTILITY (10) ----- High-capacity Storage Unit Advanced Hacking Suite > --- WEAPON (4) ------- (None) > --- INVENTORY (12) --- Advanced Heat Sink Matter Compressor (0) Improved Energy Mantle Antimissile System BFG-9k Vortex Edition Railgun Peak State ------------ > --- POWER ------------ Micro Fission Core Reinforced Antimatter Reactor Light Quantum Reactor > --- PROPULSION ------- Centrium Heavy Treads Centrium Heavy Treads Centrium Heavy Treads > --- UTILITY ---------- Advanced Coolant Injector High-capacity Storage Unit High-capacity Storage Unit High-capacity Storage Unit Experimental Energy Well Enhanced Optical Array Experimental Targeting Computer Advanced Transmission Jammer Centrium Light Armor Plating Experimental Shield Generator > --- WEAPON ----------- Nova Cannon Point Singularity Launcher Sigix Broadsword > --- INVENTORY -------- Micro Fission Core Vortex Chain Reactor Armored Medium Treads Armored Medium Treads Armored Medium Treads Centrium Heavy Treads Centrium Heavy Treads Improved Fusion Compressor Advanced Heat Sink Experimental Energy Well Matter Compressor Heavy Armor Plating Improved Energy Mantle Antimissile System Tachyon Dispersion Ray BFG-9k Vortex Edition Railgun Rocket Array Fusion Bomb Launcher [Rating: 199] Favorites ----------- Power Micro Fission Core Engine Light Ion Engine Power Core Micro Fission Core Reactor Quantum Reactor Propulsion Improved Treads Treads Improved Treads Leg Flexi-carbon Leg Wheel Armored Wheel Hover Unit Aerolev Unit Flight Unit Improved VTOL Module Utility High-capacity Storage Unit Device Advanced Transmission Jammer Storage High-capacity Storage Unit Processor Enhanced Optical Array Hackware Improved Hacking Suite Protection Centrium Medium Armor Plating Artifact Phase Redirector Weapon Improved KE Penetrator Energy Gun Small Laser Energy Cannon Long-range Proton Cannon Ballistic Gun Improved KE Penetrator Ballistic Cannon Enhanced Gauss Cannon Launcher Improved Proton Missile Launcher Impact Weapon Power Maul Slashing Weapon Sigix Broadsword Piercing Weapon Vortex Lance Build | -11 -10 -10 -10 -9 -8 -7 -6 -5 -5 -5 -5 -5 -4 -4 -4 -4 -3 -3 -3 -3 -2 -2 -2 ------- Run | Scr Mat Min Exi Min Mat Fac Fac Fac Ext Cet Arc Hub Fac Upp Upp War Pro Res Qua Sec Res Tes Gar Slots Evolved 16 | . . . . . 4 2 2 2 . . . . 2 . . . . 2 . . 2 . . Power 2 | . . . . . . 1 . . . . . . . . . . . . . . 1 . . Propulsion 4 | . . . . . 1 1 1 . . . . . 1 . . . . . . . . . . Utility 8 | . . . . . 3 . 1 2 . . . . 1 . . . . . . . 1 . . Weapon 2 | . . . . . . . . . . . . . . . . . . 2 . . . . . Parts Attached 447 | 6 20 3 1 3 32 38 9 46 31 7 13 2 19 7 6 9 13 17 58 42 22 41 2 Power 38 | 1 3 2 . 1 3 6 . 3 1 2 . . 2 . . . . . 3 5 1 5 . Engine 14 | 1 3 2 . . 2 4 . 1 1 . . . . . . . . . . . . . . Core 11 | . . . . 1 1 2 . 1 . . . . 2 . . . . . 1 1 . 2 . Reactor 13 | . . . . . . . . 1 . 2 . . . . . . . . 2 4 1 3 . Propulsion 106 | 2 5 . . . 7 9 3 18 12 2 3 . 2 . 1 1 1 1 19 7 9 4 . Treads 46 | 2 3 . . . 1 . . 3 . 2 3 . 2 . 1 . . 1 8 7 9 4 . Leg 27 | . . . . . . . . 6 11 . . . . . . . . . 10 . . . . Wheel 17 | . 2 . . . 4 . 3 5 1 . . . . . . 1 1 . . . . . . Hover 15 | . . . . . 1 9 . 4 . . . . . . . . . . 1 . . . . Flight 1 | . . . . . 1 . . . . . . . . . . . . . . . . . . Utility 136 | 1 5 . 1 . 8 11 3 16 7 2 6 2 6 . 3 4 4 10 17 12 4 13 1 Device 55 | . 3 . . . 4 2 2 6 3 . 3 . 1 . . 2 2 4 7 6 2 7 1 Storage 17 | 1 2 . 1 . . 2 . 3 . . . . 1 . 1 . . 3 1 1 1 . . Processor 12 | . . . . . 1 2 . 4 . . . . . . . 1 . 1 1 . . 2 . Hackware 10 | . . . . . . 1 . . 3 . 2 . 1 . 1 . . . 1 . . 1 . Protection 41 | . . . . . 3 4 1 3 1 2 1 2 3 . 1 1 2 2 7 4 1 3 . Artifact 1 | . . . . . . . . . . . . . . . . . . . . 1 . . . Weapon 167 | 2 7 1 . 2 14 12 3 9 11 1 4 . 9 7 2 4 8 6 19 18 8 19 1 Energy Gun 18 | 1 2 . . . 6 1 . . 2 1 . . 1 2 . . . . . . . 2 . Energy Cannon 47 | . 3 . . 2 3 2 . 3 2 . 1 . 1 . 1 . 2 3 7 12 1 4 . Ballistic Gun 41 | 1 1 . . . 1 2 . 2 . . 2 . 5 4 . . 2 3 9 1 . 8 . Ballistic Cannon 9 | . . . . . . 1 1 1 5 . 1 . . . . . . . . . . . . Launcher 36 | . 1 1 . . 4 4 1 2 2 . . . 2 1 1 1 3 . 1 2 6 4 . Special Weapon . | . . . . . . . . . . . . . . . . . . . . . . . . Impact Weapon 2 | . . . . . . . 1 1 . . . . . . . . . . . . . . . Slashing Weapon 11 | . . . . . . 2 . . . . . . . . . 1 . . 2 3 1 1 1 Piercing Weapon 3 | . . . . . . . . . . . . . . . . 2 1 . . . . . . Special Melee Weapon . | . . . . . . . . . . . . . . . . . . . . . . . . Unidentified Prototypes 39 | . . . . . 3 1 . 2 . 3 2 . 1 . . 4 2 5 3 3 2 8 . Parts Lost 106 | . 4 1 . 2 9 16 1 12 3 . . . 7 . 1 . . 1 6 10 5 23 5 Power 22 | . 2 1 . . 2 6 1 1 . . . . 2 . . . . . . 2 . 5 . Propulsion 29 | . . . . . 1 4 . 8 1 . . . 1 . 1 . . . 3 1 2 6 1 Utility 30 | . . . . . 1 3 . 2 2 . . . 2 . . . . 1 2 5 1 8 3 Weapon 25 | . 2 . . 2 5 3 . 1 . . . . 2 . . . . . 1 2 2 4 1 Highest Loss Streak 18 | . 2 1 . 1 5 7 1 4 1 . . . 4 . 1 . . 1 1 4 2 18 3 Average Slot Usage (%) 86 | . 99 100 100 100 95 80 68 87 96 94 87 88 84 85 87 86 88 85 88 81 86 67 18 Engine 2 | . 13 14 14 4 4 6 6 2 . . . . . . . . . . . . . . . Core 3 | . . . . 9 2 . . . 5 2 . . 2 10 10 10 10 9 4 . 4 3 . Reactor 3 | . . . . . . . . 3 4 6 11 11 6 . . . . . 4 7 5 7 . Treads 14 | . 24 . . . 3 . . 6 . 4 16 17 17 21 20 21 21 22 18 22 25 12 2 Leg 2 | . . . . . . . . 11 24 18 . . . . . . . . 4 . . . . Wheel 3 | . 3 28 28 28 22 . . 2 3 . . . . . . 2 4 . . . . . . Hover 1 | . . . . . . 25 13 3 . . . . . . . . . . . . . . . Device 5 | . 12 . . . 18 2 11 7 6 5 9 5 6 5 . . 2 2 1 5 15 8 2 Storage 12 | . 15 28 28 28 18 15 7 7 5 5 5 5 8 10 11 15 15 14 14 14 17 16 7 Processor 11 | . . . . . 4 13 20 20 21 17 17 15 10 10 10 11 15 14 11 9 8 6 . Hackware 5 | . . . . . . . . . 10 11 11 11 10 10 10 8 5 4 7 3 . . 4 Protection 3 | . . . . . 3 4 . 5 . 5 1 6 8 10 11 4 2 . 2 5 1 2 . Energy Gun 1 | . 15 . . . 2 . . . . 1 . . . . . . . . . . . . . Energy Cannon 4 | . 7 23 14 24 6 . . 2 1 3 . . . 2 4 3 3 13 7 4 2 1 . Ballistic Gun 3 | . 5 . . . 3 . 1 1 . . 10 11 8 3 5 5 2 . 7 . . 2 . Naked Turns . | . . . . . . . . . . . . . . . . . . . . . . . . Heaviest Build 232 | 11 45 45 58 61 69 66 38 83 75 97 96 100 131 100 174 174 179 195 232 229 177 194 69 Greatest Support 240 | 40 40 24 24 24 36 44 22 66 93 160 188 188 188 126 126 69 69 200 184 186 240 240 27 Greatest Overweight (x) 28 | . 2 1 2 2 5 2 1 7 2 1 28 . 1 . 3 2 16 2 5 1 1 2 2 Average Overweight (x) . | . . 1 1 2 1 . . . . . 5 . . . . 2 2 . . . . . 2 Largest Inventory Capacity 48 | 6 16 16 18 18 18 18 14 12 12 12 12 12 20 20 40 40 40 40 40 48 28 28 20 Average Capacity 22 | 5 7 16 16 18 18 14 9 10 12 12 12 12 17 20 26 40 40 40 40 31 28 27 19 Most Carried 40 | 6 16 16 16 18 18 18 14 12 12 12 12 12 20 20 31 40 40 40 40 40 28 28 15 Average Carried 21 | 3 7 16 15 17 17 13 9 8 11 11 10 11 13 19 21 36 39 39 39 30 23 26 14 Final Capacity 40 | 6 16 16 18 18 18 14 8 12 12 12 12 12 20 20 40 40 40 40 40 28 28 20 12 Final Carried 40 | 6 16 16 16 18 18 13 8 12 12 12 12 12 20 19 31 39 40 40 39 28 28 15 11 Class Distribution -------------------- 44% | Scavenger-Mutant 20% | Mutant 14% | Hauler-Mutant 9% | Hauler-Gunner Dominant Class ---------------- Mutant | -10/Materials Mutant | -10/Mines Mutant | -10/Exiles Mutant | -9/Mines Mutant | -8/Materials Mutant | -7/Factory Scout | -6/Factory Scavenger-Mutant | -5/Factory Scavenger-Mutant | -5/Extension Scavenger-Mutant | -5/Cetus Scavenger-Mutant | -5/Archives Scavenger-Mutant | -5/Hub_04(d) Scavenger-Mutant | -4/Factory Scavenger-Mutant | -4/Upper Caves Scavenger-Mutant | -4/Upper Caves Scavenger-Mutant | -4/Warlord Scavenger-Mutant | -3/Proximity Caves Hauler-Gunner | -3/Research Hauler-Mutant | -3/Quarantine Hauler-Mutant | -3/Section 7 Scavenger-Mutant | -2/Research Hauler-Mutant | -2/Testing Hauler-Mutant | -2/Garrison Resources | -11 -10 -10 -10 -9 -8 -7 -6 -5 -5 -5 -5 -5 -4 -4 -4 -4 -3 -3 -3 -3 -2 -2 -2 ----------- Run | Scr Mat Min Exi Min Mat Fac Fac Fac Ext Cet Arc Hub Fac Upp Upp War Pro Res Qua Sec Res Tes Gar Matter Collected 10054 | 284 704 8 . 97 468 590 116 1038 1114 181 382 116 710 180 79 . 250 488 976 717 404 1152 . Remotely . | . . . . . . . . . . . . . . . . . . . . . . . . Salvage Created 17341 | 157 1055 148 . 74 753 1215 . 1463 812 305 236 322 2039 485 257 . 142 279 1836 3112 1493 1158 . Parts 813 | 11 52 16 . 6 52 80 . 52 26 14 12 9 87 17 13 . 6 13 89 152 39 67 . Haulers Intercepted 8 | . 2 . . . 1 1 . . . . . 1 . . . . . 1 . . 2 . . Recyclers Shooed 11 | . 2 . . . . . . 2 5 . . . . . . . . . . 1 1 . . Parts Field Recycled . | . . . . . . . . . . . . . . . . . . . . . . . . Retrieved Matter . | . . . . . . . . . . . . . . . . . . . . . . . . Parts Self-Destructed 57 | . . . . . . . . . . . . . . 1 . 56 . . . . . . . Prevented 40 | . . . . . . . . . . . . . . 16 13 5 6 . . . . . . Kills | -11 -10 -10 -10 -9 -8 -7 -6 -5 -5 -5 -5 -5 -4 -4 -4 -4 -3 -3 -3 -3 -2 -2 -2 ------- Run | Scr Mat Min Exi Min Mat Fac Fac Fac Ext Cet Arc Hub Fac Upp Upp War Pro Res Qua Sec Res Tes Gar Combat Hostiles Destroyed 245 | . 14 5 . 6 11 15 . 26 13 3 1 4 27 6 3 . 2 2 22 39 19 27 . Melee 32 | . . . . . . 5 . 2 . . . . . . . . . . . 21 . 4 . Guns 64 | . 9 . . . 5 . . 2 . . . 4 21 2 . . . . 12 . . 9 . Cannons 60 | . 4 2 . 4 . . . 16 13 . 1 . . 1 . . . 2 2 8 3 4 . AOE 45 | . 1 3 . 2 5 8 . . . . . . 5 2 1 . . . . 1 7 10 . Classes Destroyed 21 | 2 5 . . 1 3 4 . . . . . . 1 . . . 1 1 1 . . 2 . Worker 15 | . . . . . . 5 . 5 . . . . 2 . . . . . . 1 1 1 . Builder 20 | . 2 1 . . 5 4 . 3 . . . . 4 . . . . . . . . 1 . Tunneler 4 | 3 . . . . . . . 1 . . . . . . . . . . . . . . . Hauler 8 | . 2 . . . 1 1 . . . . . 1 . . . . . 1 . . 2 . . Recycler 16 | 1 4 . . . 2 4 . 1 3 . . . 1 . . . . . . . . . . Carrier 1 | . . . . . . . . . . . . . . . . . . . . . . 1 . Mechanic 1 | . . . . . . 1 . . . . . . . . . . . . . . . . . Operator 13 | . . . . . 1 . . . 4 . 6 . . . . . . . . 2 . . . Watcher 13 | . 2 . . . 1 1 . 1 . 2 . . 1 . . . . . 2 2 1 . . Swarmer 23 | . 3 3 . 3 . . . 4 . . . . 4 . . . . . . 3 2 1 . Grunt 112 | . 11 2 . . 3 7 . 16 12 . . 3 14 3 . . . . 6 20 6 9 . Brawler 6 | . . . . . . . . . . . . . 2 1 . . . . . 1 . 2 . Duelist 4 | . . . . . . . . . . . . . . . . . . . 2 1 1 . . Protector 1 | . . . . . . . . . . . . . . . . . 1 . . . . . . Researcher 2 | . . . . . . . . . . . . . . . . . . . . . . 2 . Sentry 24 | . . . . . 7 . . 2 1 . 1 1 3 . 1 . . . 3 3 1 1 . Demolisher 4 | . . . . . . 2 . . . . . . . . . . 1 . . . 1 . . Hunter 25 | . . . . . 1 3 . . . . . . . 2 2 . . 1 5 . 5 6 . Programmer 36 | . . . . . . 3 . 4 . . . . 4 . . . . . 6 11 . 8 . Cetus Guard 3 | . . . . . . . . . . 3 . . . . . . . . . . . . . Striker 4 | . . . . . . . . . . . . . . . . . . 1 . . 3 . . Assembled 3 | . . . . 3 . . . . . . . . . . . . . . . . . . . Best Kill Streak 16 | 4 3 3 . 3 12 6 . 9 5 3 2 2 15 4 2 . 1 2 4 7 9 16 . Combat Bots Only 11 | . 3 3 . 3 5 3 . 7 5 2 1 2 11 4 2 . 1 2 4 6 9 10 . Max Kills in Single Turn 4 | 1 1 2 . 1 3 3 . 2 1 1 1 1 2 2 1 . 1 1 2 1 4 3 . Gunslinging 1 | . . . . . . . . . . . . . . . . . . . 1 . . . . Exploded 4 | . 1 2 . 1 2 3 . . . . . . 2 2 1 . . . . 1 4 2 . Melee 1 | . . . . . . 1 . 1 . . . . . . . . . . . 1 . 1 . Uniques/NPCs Destroyed . | . . . . . . . . . . . . . . . . . . . . . . . . Combat | -11 -10 -10 -10 -9 -8 -7 -6 -5 -5 -5 -5 -5 -4 -4 -4 -4 -3 -3 -3 -3 -2 -2 -2 -------- Run | Scr Mat Min Exi Min Mat Fac Fac Fac Ext Cet Arc Hub Fac Upp Upp War Pro Res Qua Sec Res Tes Gar Damage Taken 31518 | . 529 191 . 294 1547 2033 103 2827 626 282 102 330 2436 209 296 . 349 88 2052 6041 2110 7927 1146 Core 3841 | . 53 60 . 64 265 546 43 399 48 39 . 69 149 . . . 66 18 50 513 197 770 492 Absorbed by Shields 1461 | . . . . . . . . 37 . 93 . . . . . . . . 278 173 749 119 12 Reduced by Siege Mode 49 | . . . . . . . . . . . . . 12 . . . . . . 22 . 15 . Redirected to Core 227 | . . . . . . . . . . . . . . . . . . . . 227 . . . Core Remaining (%) 59 | 100 . . . 29 51 22 94 . . . . 44 . . . . 81 . . 55 . . . Volleys Fired 831 | 8 75 9 . 9 39 39 13 70 93 11 28 18 71 73 10 7 20 4 50 65 58 61 . Largest 4 | 2 2 2 . 2 2 2 1 2 2 1 2 2 2 2 1 1 2 3 4 2 2 2 . Hottest 285 | 60 112 112 . 112 112 117 48 144 225 75 75 70 240 240 75 30 162 285 229 176 97 151 . Shots Fired 1244 | 15 148 16 . 15 57 43 13 88 116 11 43 36 129 77 10 7 25 11 140 94 62 88 . Gun 615 | 15 125 . . . 24 4 . 20 2 . 32 36 120 69 . 7 15 . 89 4 . 53 . Cannon 506 | . 22 14 . 12 16 16 13 61 113 1 11 . 4 5 6 . 10 11 48 77 48 18 . Launcher 123 | . 1 2 . 3 17 23 . 7 1 10 . . 5 3 4 . . . 3 13 14 17 . Special . | . . . . . . . . . . . . . . . . . . . . . . . . Kinetic 610 | 8 37 . . . 13 17 13 60 81 . 39 36 116 23 . 7 15 . 89 4 . 52 . Thermal 184 | . 66 . . . 5 1 . . 32 . . . 4 46 . . . . . 12 . 18 . Explosive 52 | . 1 2 . 3 11 10 . . . . . . . . . . . . . . 8 17 . Electromagnetic 398 | 7 44 14 . 12 28 15 . 28 3 11 4 . 9 8 10 . 10 11 51 78 54 1 . Robot Hit Streak 50 | 6 13 14 . 3 13 11 . 23 21 8 14 10 28 19 8 . 5 8 35 50 21 12 . Robot Miss Streak 7 | 5 6 2 . 2 2 3 . 5 5 1 3 1 2 1 1 . 2 1 4 1 2 7 . Penetration Max 2 | . . . . . . . . . . . . 1 1 1 . . . . 2 . . 1 . Secondary Targets 10 | . 1 . . . 1 . . . . . . . 4 . . . . . 2 . . 2 . Max Gunslinging Chain 1 | . 1 . . . 1 . . . . . . . 1 . . . . . 1 . . 1 . Shots Hit Robots 947 | 8 96 13 . 6 43 56 . 101 69 9 33 27 110 15 8 . 7 7 98 123 46 71 1 Core Hits 629 | 5 42 8 . 8 27 45 1 51 40 13 19 12 62 15 4 . 5 4 41 67 46 113 1 Critical Hits 68 | . 1 . . . 1 1 . 1 3 . 3 5 25 1 . . . . 8 13 1 5 . Critical Kills 30 | . . . . . 1 . . . 1 . 1 2 12 . . . . . 5 6 . 2 . Critical Parts Destroyed 36 | . 1 . . . . 1 . 1 2 . 2 3 12 1 . . . . 3 6 1 3 . Melee Attacks 186 | . . . . . . 37 5 38 . . . . . . . 3 1 . 1 81 1 17 2 Impact 43 | . . . . . . . 5 38 . . . . . . . . . . . . . . . Slashing 139 | . . . . . . 37 . . . . . . . . . . . . 1 81 1 17 2 Piercing . | . . . . . . . . . . . . . . . . . . . . . . . . Entropic 4 | . . . . . . . . . . . . . . . . 3 1 . . . . . . Sneak Attacks 18 | . . . . . . 8 . 5 . . . . . . . . . . . 4 1 . . Combat Hostiles 1 | . . . . . . . . . . . . . . . . . . . . 1 . . . Follow-up Attacks . | . . . . . . . . . . . . . . . . . . . . . . . . Damage Inflicted 46690 | 126 1408 471 . 181 1627 4162 9 4814 3181 1036 1230 670 4046 689 344 . 274 403 3133 8710 3322 6756 98 Guns 9896 | 126 1055 . . . 407 17 . 487 . . 671 659 3486 239 . . . . 1697 . . 1052 . Cannons 13398 | . 251 276 . 94 229 277 . 2552 3146 27 559 . 106 172 141 . 205 403 1216 1931 1423 390 . Explosions 12978 | . 86 195 . 87 991 1371 . 595 35 1009 . 11 445 278 203 . 69 . 220 1241 1701 4441 . Melee 10344 | . . . . . . 2497 . 1179 . . . . . . . . . . . 5520 198 861 89 Ramming 74 | . 16 . . . . . 9 1 . . . . 9 . . . . . . 18 . 12 9 Kinetic 14658 | 42 277 . . . 256 241 . 2570 3011 . 1128 659 3486 239 . . . . 1697 . . 1052 . Thermal 2578 | . 663 31 . . 143 181 . 285 72 309 . . 95 . . . 69 . . 340 . 390 . Explosive 7181 | . . 164 . 87 839 481 . . . . . . . . . . . . . . 1299 4311 . Electromagnetic 11855 | 84 452 276 . 94 389 762 . 779 98 727 102 11 456 450 344 . 205 403 1436 2832 1825 130 . Impact 1179 | . . . . . . . . 1179 . . . . . . . . . . . . . . . Slashing 9165 | . . . . . . 2497 . . . . . . . . . . . . . 5520 198 861 89 Piercing . | . . . . . . . . . . . . . . . . . . . . . . . . Highest Corruption 30 | . 1 1 1 1 . 5 . 7 7 7 7 1 2 2 2 2 . . 8 30 . 20 20 Average Corruption 6 | . 1 1 1 1 . 3 . 6 7 7 4 1 1 2 2 2 . . 7 15 . 8 20 Corruption Purged 8 | . . . . . . 1 . . . . 7 . . . . . . . . . . . . Effects 351 | . 1 1 . 4 . 18 . 19 50 10 32 3 1 11 9 1 . . 52 97 . 34 8 Message Errors 85 | . . 1 . 2 . 3 . 4 13 6 8 2 . 5 7 . . . 9 13 . 10 2 Matter Fused 68 | . . . . . . 6 . 6 6 3 9 . . . . . . . 14 16 . 6 2 Heat Flow Errors 33 | . . . . . . 1 . 3 6 1 5 . . 3 . 1 . . 7 2 . 3 1 Energy Discharges 33 | . . . . . . 2 . 2 3 . 3 1 1 2 1 . . . 5 9 . 3 1 Parts Rejected 3 | . . . . . . . . . . . . . . . . . . . . 2 . 1 . Data Loss (minor) 29 | . . . . 1 . 3 . 2 4 . 3 . . 1 1 . . . 5 7 . 1 1 Data Loss (major) 9 | . . . . . . . . . 4 . . . . . . . . . 1 3 . 1 . Misfires 5 | . . . . . . . . 1 2 . . . . . . . . . 1 1 . . . Alerts 5 | . . . . . . . . . . . . . . . . . . . . 3 . 1 1 Misdirections 7 | . . . . . . . . . . . . . . . . . . . . 6 . 1 . Targeting Errors 64 | . 1 . . 1 . 3 . 1 10 . 3 . . . . . . . 9 31 . 5 . Weapon Failures 10 | . . . . . . . . . 2 . 1 . . . . . . . 1 4 . 2 . Overload Shots 8 | . . . . . . . . . 2 . . . 4 2 . . . . . . . . . Overflow Damage 2116 | . 42 6 . . 40 454 . 549 79 . 23 . 23 . . . 5 . 23 515 42 315 . Projectiles 273 | . 15 6 . . . 6 . 46 79 . 23 . . . . . . . 23 33 42 . . Explosions 697 | . 27 . . . 40 145 . 172 . . . . 23 . . . 5 . . 10 . 275 . Melee 1146 | . . . . . . 303 . 331 . . . . . . . . . . . 472 . 40 . Knockbacks 65 | . . . . . . 2 . 40 20 . 3 . . . . . . . . . . . . Impact 6 | . . . . . . . . 6 . . . . . . . . . . . . . . . Kinetic 55 | . . . . . . 2 . 31 19 . 3 . . . . . . . . . . . . Secondary 4 | . . . . . . . . 3 1 . . . . . . . . . . . . . . Self-Inflicted Damage 807 | . . 40 . 4 115 306 4 9 . . . 92 . . . . . . . 19 . 218 . Shots 27 | . . 2 . 1 5 7 . 1 . . . 1 . . . . . . . 2 . 8 . Rammed 20 | . 6 . . . . . 1 1 . . . . 2 . . . . . . 1 . 3 6 Targets Rammed 20 | . 6 . . . . . 1 1 . . . . 2 . . . . . . 1 . 3 6 Kicked . | . . . . . . . . . . . . . . . . . . . . . . . . Crushed . | . . . . . . . . . . . . . . . . . . . . . . . . Highest Temperature 411 | . 102 207 . 120 96 124 . 187 229 208 194 . 396 296 138 272 162 210 411 175 2 180 83 Average Temperature 80 | . 28 88 . 62 30 31 . 50 79 118 111 . 111 72 64 142 76 99 104 62 2 68 83 Received Heat Transfer 4766 | . 261 60 . . 468 444 12 870 246 18 . 48 345 12 27 . 9 9 123 956 66 792 . Effects 5 | . . . . . . . . . . . . . 1 1 . . . . 3 . . . . Shutdowns 1 | . . . . . . . . . . . . . 1 . . . . . . . . . . Energy Bleed 1 | . . . . . . . . . . . . . . 1 . . . . . . . . . Interference 3 | . . . . . . . . . . . . . . . . . . . 3 . . . . Siege Activations 3 | . . . . . . . . . . . . . 1 . . . . . . 1 . 1 . Total Turns 117 | . . . . . . . . . . . . . 10 . . . . . . 87 . 20 . Longest Duration 87 | . . . . . . . . . . . . . 10 . . . . . . 87 . 20 . Robots Corrupted 45 | . . . . . 1 2 . 5 . 3 . . 1 1 2 . 2 1 8 9 10 . . Combat Hostiles 43 | . . . . . 1 2 . 5 . 3 . . 1 1 2 . 2 . 8 9 9 . . Parts Fried 101 | . 1 1 . . . 2 . 17 . 4 . . 3 3 4 . 5 1 17 23 20 . . Impact Corruptions 13 | . . . . . . . . 13 . . . . . . . . . . . . . . . Robots Melted . | . . . . . . . . . . . . . . . . . . . . . . . . Combat Hostiles . | . . . . . . . . . . . . . . . . . . . . . . . . Parts Melted 5 | . 2 . . . 1 . . 1 . . . . . . . . . . . . . 1 . Heat Transferred 3276 | . 1346 50 . . 198 400 . 200 74 200 . . 150 . . . 25 . . 300 . 333 . Parts Sabotaged . | . . . . . . . . . . . . . . . . . . . . . . . . Parts Stolen . | . . . . . . . . . . . . . . . . . . . . . . . . Parts Stripped . | . . . . . . . . . . . . . . . . . . . . . . . . Power Chain Reactions 15 | . 2 1 . . 1 2 . . . 2 . . 3 . . . 1 . . 2 1 . . Missiles Intercepted . | . . . . . . . . . . . . . . . . . . . . . . . . Alert | -11 -10 -10 -10 -9 -8 -7 -6 -5 -5 -5 -5 -5 -4 -4 -4 -4 -3 -3 -3 -3 -2 -2 -2 ------- Run | Scr Mat Min Exi Min Mat Fac Fac Fac Ext Cet Arc Hub Fac Upp Upp War Pro Res Qua Sec Res Tes Gar Peak Influence 1371 | 20 203 149 . 70 269 1073 487 716 681 868 553 1133 712 . . . . 50 256 873 1008 1371 890 Initial 890 | . 13 34 . . 1 64 465 233 310 203 347 44 516 . . . . 27 27 61 477 561 890 Average 323 | 8 99 99 . 14 69 695 467 400 372 515 312 572 444 . . . . 19 89 329 663 806 880 Maximum Alert Level 4 | . 1 . . . 1 3 2 3 2 3 2 4 3 . . . . . 1 3 3 4 3 Low Security (%) 46 | 100 94 100 . 100 89 17 . . 19 . 18 23 18 . . . . 100 95 38 . . . Level 1 17 | . 5 . . . 10 . . 67 32 48 56 12 3 . . . . . 4 24 . . . Level 2 22 | . . . . . . 27 100 23 47 19 24 15 76 . . . . . . 27 56 34 . Level 3 12 | . . . . . . 54 . 9 . 32 . 41 1 . . . . . . 9 43 51 100 Level 4 . | . . . . . . . . . . . . 6 . . . . . . . . . 13 . Level 5 . | . . . . . . . . . . . . . . . . . . . . . . . . High Security . | . . . . . . . . . . . . . . . . . . . . . . . . Max Security . | . . . . . . . . . . . . . . . . . . . . . . . . Squads Dispatched 81 | . 5 . . 1 5 12 1 5 4 . . 6 4 . . . . 7 4 10 2 15 . Investigation 16 | . 5 . . 1 . 4 . . . . . 1 1 . . . . 1 1 . 1 1 . Extermination 17 | . . . . . . 3 1 2 . . . 1 1 . . . . . 2 4 . 3 . Reinforcement 29 | . . . . . 1 2 . 3 4 . . 3 1 . . . . 6 1 3 1 4 . Assault 10 | . . . . . . 3 . . . . . 1 1 . . . . . . 3 . 2 . Garrison 9 | . . . . . 4 . . . . . . . . . . . . . . . . 5 . Intercept . | . . . . . . . . . . . . . . . . . . . . . . . . Construction Impeded 7 | . . . . . . 1 . 2 1 . . . 1 . . . . . . . 1 1 . Haulers Reinforced 4 | . . . . . . 1 . . . . . . . . . . . 3 . . . . . Stealth | -11 -10 -10 -10 -9 -8 -7 -6 -5 -5 -5 -5 -5 -4 -4 -4 -4 -3 -3 -3 -3 -2 -2 -2 --------- Run | Scr Mat Min Exi Min Mat Fac Fac Fac Ext Cet Arc Hub Fac Upp Upp War Pro Res Qua Sec Res Tes Gar Distress Signals 63 | . 1 . . . 2 . . 3 2 . . 1 3 . . . 30 12 1 3 5 . . Communications Jammed 189 | . . . . . . . . . . . . . 3 . . . 11 . . 113 61 1 . Distress Signals 188 | . . . . . . . . . . . . . 3 . . . 11 . . 113 61 . . Times Spotted 504 | . 24 5 . 6 19 43 2 33 45 10 19 27 37 6 3 . 6 13 33 87 32 51 3 Peak Tracking Total 16 | . 5 3 . 3 5 10 3 6 8 5 2 16 10 4 2 . 2 4 4 10 5 8 3 Tactical Retreats 31 | . 2 . . . . 8 . 1 4 . . . 2 . . . 1 . 1 7 3 2 . Traps | -11 -10 -10 -10 -9 -8 -7 -6 -5 -5 -5 -5 -5 -4 -4 -4 -4 -3 -3 -3 -3 -2 -2 -2 ------- Run | Scr Mat Min Exi Min Mat Fac Fac Fac Ext Cet Arc Hub Fac Upp Upp War Pro Res Qua Sec Res Tes Gar Traps Triggered 19 | . 2 . . . 1 1 . 3 2 . . 1 1 . . . . . 4 2 . 1 1 Indirectly 2 | . . . . . 1 . . . . . . . . . . . . . . 1 . . . Trap Hack Attempts . | . . . . . . . . . . . . . . . . . . . . . . . . Triggered . | . . . . . . . . . . . . . . . . . . . . . . . . Disarmed . | . . . . . . . . . . . . . . . . . . . . . . . . Reprogrammed . | . . . . . . . . . . . . . . . . . . . . . . . . Reused . | . . . . . . . . . . . . . . . . . . . . . . . . Traps Extracted . | . . . . . . . . . . . . . . . . . . . . . . . . Installed . | . . . . . . . . . . . . . . . . . . . . . . . . Triggered 14 | . . . . . . . . . . . . . . . . 13 . . . 1 . . . Machines | -11 -10 -10 -10 -9 -8 -7 -6 -5 -5 -5 -5 -5 -4 -4 -4 -4 -3 -3 -3 -3 -2 -2 -2 ---------- Run | Scr Mat Min Exi Min Mat Fac Fac Fac Ext Cet Arc Hub Fac Upp Upp War Pro Res Qua Sec Res Tes Gar Machines Disabled 69 | . . . . . 4 6 . 6 8 5 3 6 1 . . 1 3 . 7 6 3 10 . Max in Single Turn 5 | . . . . . 4 4 . 2 2 . 1 5 1 . . 1 1 . 1 2 1 3 . Garrison Access 2 | . . . . . . . . . . . . . . . . . . 1 1 . . . . Network Hub 1 | . . . . . . . . . . . . 1 . . . . . . . . . . . Machines Sabotaged . | . . . . . . . . . . . . . . . . . . . . . . . . Garrisons Compromised . | . . . . . . . . . . . . . . . . . . . . . . . . Overloaded Fab Kills . | . . . . . . . . . . . . . . . . . . . . . . . . Fab Network Shutdowns 1 | . . . . . . 1 . . . . . . . . . . . . . . . . . Hacking | -11 -10 -10 -10 -9 -8 -7 -6 -5 -5 -5 -5 -5 -4 -4 -4 -4 -3 -3 -3 -3 -2 -2 -2 --------- Run | Scr Mat Min Exi Min Mat Fac Fac Fac Ext Cet Arc Hub Fac Upp Upp War Pro Res Qua Sec Res Tes Gar Machines Accessed 66 | . 10 . . 2 2 8 . 3 12 1 . 2 5 . . 2 . . 10 4 1 4 . Terminals 42 | . 8 . . 1 1 4 . 3 12 1 . 2 2 . . . . . 5 2 1 . . Fabricators 3 | . . . . . . 1 . . . . . . 1 . . . . . . . . 1 . Repair Stations 11 | . . . . . 1 3 . . . . . . 2 . . . . . 2 2 . 1 . Recycling Units 2 | . 2 . . . . . . . . . . . . . . . . . . . . . . Scanalyzers 3 | . . . . . . . . . . . . . . . . . . . 2 . . 1 . Garrison Access 2 | . . . . . . . . . . . . . . . . . . . 1 . . 1 . Total Hacks 216 | . 26 . . 6 9 18 . 5 28 5 . 10 29 . . 2 . . 47 16 5 10 . Successful 101 | . 11 . . 4 7 7 . 2 13 1 . 3 15 . . 2 . . 26 6 1 3 . Failed 113 | . 14 . . 1 2 11 . 3 15 4 . 7 14 . . . . . 21 10 4 7 . Catastrophic 22 | . . . . . 1 3 . 2 5 . . 3 1 . . . . . 3 1 1 2 . Database Lockouts 2 | . 1 . . 1 . . . . . . . . . . . . . . . . . . . Manual 100 | . 16 . . 9 3 4 . 2 15 1 . 8 15 . . . . . 20 1 5 1 . Terminals 152 | . 24 . . 5 3 10 . 5 28 5 . 10 16 . . . . . 31 10 5 . . Fabricators 7 | . . . . . . 3 . . . . . . 2 . . . . . . . . 2 . Repair Stations 38 | . . . . . 6 5 . . . . . . 11 . . . . . 7 6 . 3 . Recycling Units 2 | . 2 . . . . . . . . . . . . . . . . . . . . . . Scanalyzers 8 | . . . . . . . . . . . . . . . . . . . 7 . . 1 . Garrison Access 6 | . . . . . . . . . . . . . . . . . . . 2 . . 4 . Terminal Hacks 54 | . 6 . . 4 1 1 . 1 12 1 . 2 8 . . 2 . . 12 3 1 . . Part Schematic 2 | . 1 . . . . . . . . . . . . . . . . . 1 . . . . Robot Analysis 5 | . . . . 3 . . . . . . . . . . . . . . 2 . . . . Prototype ID Bank 1 | . 1 . . . . . . . . . . . . . . . . . . . . . . Open Door 10 | . . . . 1 . . . 1 5 1 . . . . . 2 . . . . . . . Level Access Points 1 | . . . . . . . . . . . . . . . . . . . . 1 . . . Branch Access Points 3 | . 1 . . . . . . . . . . . 1 . . . . . . . 1 . . Machine Index 1 | . . . . . . . . . . . . . . . . . . . 1 . . . . Terminal Index 4 | . . . . . . 1 . . 1 . . . 1 . . . . . 1 . . . . Alert Level 7 | . 1 . . . . . . . 1 . . . 2 . . . . . 2 1 . . . Unreport Threat 14 | . . . . . 1 . . . 4 . . . 4 . . . . . 4 1 . . . Locate Traps 1 | . . . . . . . . . 1 . . . . . . . . . . . . . . Recall Investigation 1 | . 1 . . . . . . . . . . . . . . . . . . . . . . Recall Reinforcements 1 | . . . . . . . . . . . . 1 . . . . . . . . . . . Registered Components 1 | . 1 . . . . . . . . . . . . . . . . . . . . . . Zone Layout 2 | . . . . . . . . . . . . 1 . . . . . . 1 . . . . Fabricator Hacks 5 | . . . . . . 2 . . . . . . 2 . . . . . . . . 1 . Load Schematic 2 | . . . . . . . . . . . . . 1 . . . . . . . . 1 . Build 3 | . . . . . . 2 . . . . . . 1 . . . . . . . . . . Repair Station Hacks 22 | . . . . . 6 3 . . . . . . 4 . . . . . 5 3 . 1 . Scan Component 15 | . . . . . 3 1 . . . . . . 4 . . . . . 4 2 . 1 . Repair 6 | . . . . . 3 1 . . . . . . . . . . . . 1 1 . . . Refit 1 | . . . . . . 1 . . . . . . . . . . . . . . . . . Recycling Unit Hacks . | . . . . . . . . . . . . . . . . . . . . . . . . Scanalyzer 4 | . . . . . . . . . . . . . . . . . . . 4 . . . . Insert Component 4 | . . . . . . . . . . . . . . . . . . . 4 . . . . Garrison Access Hacks 2 | . . . . . . . . . . . . . . . . . . . 1 . . 1 . Unlock Access 1 | . . . . . . . . . . . . . . . . . . . . . . 1 . Seal Access 1 | . . . . . . . . . . . . . . . . . . . 1 . . . . Unauthorized Hacks 14 | . 5 . . . . 1 . 1 1 . . 1 1 . . . . . 4 . . . . Terminals 12 | . 3 . . . . 1 . 1 1 . . 1 1 . . . . . 4 . . . . Track 3 | . 1 . . . . . . . . . . . . . . . . . 2 . . . . Botnet 5 | . 1 . . . . . . 1 1 . . . 1 . . . . . 1 . . . . Disrupt 1 | . . . . . . . . . . . . 1 . . . . . . . . . . . Operators 3 | . 1 . . . . 1 . . . . . . . . . . . . 1 . . . . Fabricators . | . . . . . . . . . . . . . . . . . . . . . . . . Repair Stations . | . . . . . . . . . . . . . . . . . . . . . . . . Recycling Units 2 | . 2 . . . . . . . . . . . . . . . . . . . . . . Tunnel 2 | . 2 . . . . . . . . . . . . . . . . . . . . . . Scanalyzers . | . . . . . . . . . . . . . . . . . . . . . . . . Garrison Access . | . . . . . . . . . . . . . . . . . . . . . . . . Data Cores Recovered 2 | . . . . . . . . . 1 . . 1 . . . . . . . . . . . Used 1 | . . . . . . . . . 1 . . . . . . . . . . . . . . Hacking Detections 52 | . 7 . . 1 2 6 . 3 9 . . 2 4 . . . . . 9 4 1 4 . Full Trace Events 14 | . 5 . . . . 4 . . . . . 1 1 . . . . . 1 . 1 1 . Feedback Events 3 | . . . . . . 2 . . . . . 1 . . . . . . . . . . . Corruption 2 | . . . . . . 1 . . . . . 1 . . . . . . . . . . . Hackware Fried 1 | . . . . . . 1 . . . . . . . . . . . . . . . . . Feedback Blocked . | . . . . . . . . . . . . . . . . . . . . . . . . Robot Schematics Acquired . | . . . . . . . . . . . . . . . . . . . . . . . . Robots Built 8 | . . . . . . 8 . . . . . . . . . . . . . . . . . Matter 504 | . . . . . . 504 . . . . . . . . . . . . . . . . . Time 88 | . . . . . . 88 . . . . . . . . . . . . . . . . . Total Robot Build Rating 32 | . . . . . . 32 . . . . . . . . . . . . . . . . . Part Schematics Acquired 2 | . 1 . . . . . . . . . . . . . . . . . 1 . . . . Parts Built 1 | . . . . . . . . . . . . . 1 . . . . . . . . . . Matter 102 | . . . . . . . . . . . . . 102 . . . . . . . . . . Time 25 | . . . . . . . . . . . . . 25 . . . . . . . . . . Total Part Build Rating 1 | . . . . . . . . . . . . . 1 . . . . . . . . . . Parts Repaired 5 | . . . . . 3 . . . . . . . . . . . . . 1 1 . . . Time 217 | . . . . . 102 60 . . . . . . . . . . . . 8 47 . . . Parts Recycled . | . . . . . . . . . . . . . . . . . . . . . . . . Recycled Matter . | . . . . . . . . . . . . . . . . . . . . . . . . Retrieved Matter . | . . . . . . . . . . . . . . . . . . . . . . . . Retrieved Components . | . . . . . . . . . . . . . . . . . . . . . . . . Parts Scanalyzed . | . . . . . . . . . . . . . . . . . . . . . . . . Part Schematics Acquired . | . . . . . . . . . . . . . . . . . . . . . . . . Parts Damaged . | . . . . . . . . . . . . . . . . . . . . . . . . Bothacking | -11 -10 -10 -10 -9 -8 -7 -6 -5 -5 -5 -5 -5 -4 -4 -4 -4 -3 -3 -3 -3 -2 -2 -2 ------------ Run | Scr Mat Min Exi Min Mat Fac Fac Fac Ext Cet Arc Hub Fac Upp Upp War Pro Res Qua Sec Res Tes Gar Used RIF Installer . | . . . . . . . . . . . . . . . . . . . . . . . . Robots Hacked . | . . . . . . . . . . . . . . . . . . . . . . . . Non-combat . | . . . . . . . . . . . . . . . . . . . . . . . . Combat . | . . . . . . . . . . . . . . . . . . . . . . . . Robot Hacks Applied . | . . . . . . . . . . . . . . . . . . . . . . . . Relay Couplers Released 10 | . . . . . . . . . . . . . . . . . . 6 . 4 . . . Machine Destruction 2 | . . . . . . . . . . . . . . . . . . 2 . . . . . Programmers 8 | . . . . . . . . . . . . . . . . . . 4 . 4 . . . Robots Rewired 6 | . . . . . . . . . 6 . . . . . . . . . . . . . . Allies Hacked . | . . . . . . . . . . . . . . . . . . . . . . . . Hacks Repelled . | . . . . . . . . . . . . . . . . . . . . . . . . Allies | -11 -10 -10 -10 -9 -8 -7 -6 -5 -5 -5 -5 -5 -4 -4 -4 -4 -3 -3 -3 -3 -2 -2 -2 -------- Run | Scr Mat Min Exi Min Mat Fac Fac Fac Ext Cet Arc Hub Fac Upp Upp War Pro Res Qua Sec Res Tes Gar Total Allies 33 | . . . . 3 . 8 . . 17 5 . . . . . . . . . . . . . Largest Group 8 | . . . . 3 3 8 . . 7 8 8 5 . . . . . . . . . . . Highest-Rated Group 670 | . . . . 40 40 96 . . 295 670 670 413 . . . . . . . . . . . Highest-Rated Ally 156 | . . . . 16 16 12 . . 156 156 150 94 . . . . . . . . . . . Total Orders 3 | . . . . . . . . . . . 2 . . . . . . . . . 1 . . STAY 1 | . . . . . . . . . . . 1 . . . . . . . . . . . . FOLLOW 1 | . . . . . . . . . . . 1 . . . . . . . . . . . . EXPLORE 1 | . . . . . . . . . . . . . . . . . . . . . 1 . . Ally Attacks 360 | . . . . . 11 115 . . 105 51 14 64 . . . . . . . . . . . Total Damage 7974 | . . . . . 149 1351 . . 2277 1255 336 2606 . . . . . . . . . . . Kills 67 | . . . . . 1 11 . . 17 14 3 21 . . . . . . . . . . . Allies Corrupted 4 | . . . . . . . . . . . . 4 . . . . . . . . . . . Allies Melted 1 | . . . . . . . . . . . . . . . . 1 . . . . . . . Intel | -11 -10 -10 -10 -9 -8 -7 -6 -5 -5 -5 -5 -5 -4 -4 -4 -4 -3 -3 -3 -3 -2 -2 -2 ------- Run | Scr Mat Min Exi Min Mat Fac Fac Fac Ext Cet Arc Hub Fac Upp Upp War Pro Res Qua Sec Res Tes Gar Robot Analysis Total 5 | . . . . 3 . . . . . . . . . . . . . . 2 . . . . Derelict Logs Recovered 6 | . . 1 . 2 . . . . . . . . . 2 1 . . . . . . . . Drone Launches 3 | . . . . . . . . . . . . . . . . . . . . . 3 . . Drone Recoveries 1 | . . . . . . . . . . . . . . . . . . . . . 1 . . Exploration | -11 -10 -10 -10 -9 -8 -7 -6 -5 -5 -5 -5 -5 -4 -4 -4 -4 -3 -3 -3 -3 -2 -2 -2 ------------- Run | Scr Mat Min Exi Min Mat Fac Fac Fac Ext Cet Arc Hub Fac Upp Upp War Pro Res Qua Sec Res Tes Gar Turns Passed 20711 | 120 1370 280 279 680 677 1213 306 1281 1154 312 1471 634 1023 1053 634 963 659 1536 1880 1566 573 843 204 Spaces Moved 10055 | 54 694 237 273 535 294 1194 303 631 634 173 229 357 430 503 349 453 267 389 899 539 242 310 66 Core 51 | 3 . . . . . . . 4 . . 44 . . . . . . . . . . . . Treads 5809 | 51 548 . . . 38 . . 234 . 67 185 357 430 503 349 453 262 389 786 539 242 310 66 Legs 767 | . . . . . . . . 109 439 106 . . . . . . . . 113 . . . . Wheels 1835 | . 146 237 273 535 256 20 . 168 195 . . . . . . . 5 . . . . . . Hover 1593 | . . . . . . 1174 303 116 . . . . . . . . . . . . . . . Flight . | . . . . . . . . . . . . . . . . . . . . . . . . Fastest Speed 38 | 50 100 100 100 110 100 38 51 51 103 120 160 160 160 160 160 200 200 157 150 159 160 160 210 Average Speed 142 | 153 147 100 101 110 119 50 64 126 119 135 407 160 161 160 169 200 200 169 172 171 166 161 210 Slowest Speed 1450 | 160 180 100 110 110 200 111 111 400 150 180 1450 160 180 160 220 200 240 200 270 187 183 210 210 Overloaded Moves . | . . . . . . . . . . . . . . . . . . . . . . . . Propulsion Burnouts . | . . . . . . . . . . . . . . . . . . . . . . . . Robots Hopped . | . . . . . . . . . . . . . . . . . . . . . . . . Cave-ins Triggered . | . . . . . . . . . . . . . . . . . . . . . . . . Exploration Rate (%) 45 | 4 95 44 68 94 26 27 11 13 67 73 83 43 13 61 65 62 41 10 93 24 16 48 16 Regions Visited 23 Branch Regions 14 Pre-discovered Areas 3 | . 2 . . . . . . . . . . . . 1 . . . . . . . . . Known Exits Taken 11 | . 1 . . . 1 1 1 1 . . . 1 1 . . . . 1 . 1 1 1 . Unknown Exits Taken 12 | 1 . 1 1 1 . . . . 1 1 1 . . 1 1 1 1 . 1 . . . . Scrap Searched 10 | . . . . 4 . . . . . . . . . 3 3 . . . . . . . . Spaces Dug 67 | . 3 . . . . 2 6 7 7 . . . 3 5 . 8 10 . 3 6 . 7 . Terrain Destroyed 875 | . 8 21 . 18 101 73 7 62 53 24 7 175 34 60 . 15 18 . 6 34 37 122 . Melee 23 | . . . . . . 1 5 7 . . . . . . . 2 1 . 1 5 . 1 . Projectile 253 | . . . . . . 4 2 21 53 . 7 9 27 60 . 13 17 . 5 11 . 24 . AOE 599 | . 8 21 . 18 101 68 . 34 . 24 . 166 7 . . . . . . 18 37 97 . Terrain Rammed . | . . . . . . . . . . . . . . . . . . . . . . . . Walls Destroyed . | . . . . . . . . . . . . . . . . . . . . . . . . Machines Disabled . | . . . . . . . . . . . . . . . . . . . . . . . . Actions | -11 -10 -10 -10 -9 -8 -7 -6 -5 -5 -5 -5 -5 -4 -4 -4 -4 -3 -3 -3 -3 -2 -2 -2 --------- Run | Scr Mat Min Exi Min Mat Fac Fac Fac Ext Cet Arc Hub Fac Upp Upp War Pro Res Qua Sec Res Tes Gar Total 14840 | 73 889 263 276 614 564 1689 399 970 921 243 727 384 623 671 381 506 362 1260 1123 948 346 523 85 Wait 2625 | . 63 14 . 56 164 327 43 124 90 29 435 4 81 87 2 . 53 819 47 146 6 29 6 Move 10034 | 53 693 236 272 534 293 1193 303 630 633 172 228 356 429 502 348 452 266 388 898 538 241 310 66 Hop . | . . . . . . . . . . . . . . . . . . . . . . . . Pick Up 240 | 6 19 . 1 8 18 25 8 18 11 8 6 2 15 1 12 18 3 13 19 15 7 7 . Fast Attach 167 | 6 7 1 . . 12 12 4 28 10 4 6 1 6 . 3 2 2 5 22 17 4 15 . Attach 128 | . 3 . . 2 10 16 3 8 3 1 3 1 4 1 . 2 2 3 9 18 16 21 2 Detach 53 | . . . . . 1 1 1 4 . 1 3 . . . . . 2 2 7 16 5 10 . Swap 155 | . 10 2 1 1 10 10 2 10 18 2 4 . 9 6 3 5 9 10 27 9 2 5 . Drop 320 | . 13 1 2 4 17 29 17 26 26 15 14 2 6 1 3 17 4 16 39 40 6 21 1 Fire 831 | 8 75 9 . 9 39 39 13 70 93 11 28 18 71 73 10 7 20 4 50 65 58 61 . Melee 186 | . . . . . . 37 5 38 . . . . . . . 3 1 . 1 81 1 17 2 Ram 5 | . . . . . . . . . . . . . . . . . . . . . . . 5 Kick . | . . . . . . . . . . . . . . . . . . . . . . . . Crush 14 | . 6 . . . . . . 1 . . . . 2 . . . . . . 1 . 3 1 Escape Stasis 56 | . . . . . . . . 13 11 . . . . . . . . . 4 2 . 24 2 Rewire 26 | . . . . . . . . . 26 . . . . . . . . . . . . . . Trap . | . . . . . . . . . . . . . . . . . . . . . . . . Miscellaneous . | . . . . . . . . . . . . . . . . . . . . . . . . Route ------- -11/Scrapyard -10/Materials (discovered 5 exits: [*Mat x3] / *Min x2) -10/Mines (discovered 2 exits: [*Mat] / *Exi) -10/Exiles -9/Mines -8/Materials (discovered 2 exits: *Fac x2) -7/Factory (discovered 2 exits: *Fac x2) -6/Factory -5/Factory (discovered 2 exits: *Fac / *Ext) -5/Extension (discovered 2 exits: *Fac / *Cet) -5/Cetus (discovered 2 exits: *Fac / [*Arc]) -5/Archives (discovered 3 exits: *Fac / *Hub x2) -5/Hub_04(d) -4/Factory (discovered 3 exits: *Upp x2 / Arm) -4/Upper Caves -4/Upper Caves (discovered 2 exits: *Res / *War) -4/Warlord -3/Proximity Caves -3/Research -3/Quarantine (discovered 2 exits: *Res / *Sec) -3/Section 7 -2/Research (discovered 2 exits: *Tes x2) -2/Testing -2/Garrison History --------- Turn | Location | Event 8 | -11/Scrapyard | Discovered new exit (range 15) 121 | -11/Scrapyard | Entered Materials 160 | -10/Materials | Central database locked down 226 | -10/Materials | Discovered new exit (range 16) 320 | -10/Materials | Build established: Mutant 475 | -10/Materials | Discovered new exit (range 16) 606 | -10/Materials | Discovered new exit (range 3) 1025 | -10/Materials | Discovered new exit (range 16) 1146 | -10/Materials | Discovered new exit (range 11) 1203 | -10/Materials | Identified exit to Mines 1491 | -10/Materials | Entered Mines 1505 | -10/Mines | Discovered new exit (range 8) 1630 | -10/Mines | Learned 2 Materials zone layouts 1661 | -10/Mines | Found a hidden stash of uninstalled traps 1767 | -10/Mines | Deemed a non-threat by the Exiles lab entrance 1767 | -10/Mines | Discovered new exit (range 5) 1771 | -10/Mines | Entered Exiles 1771 | -10/Exiles | Found Exiles lab abandoned 2041 | -10/Exiles | Discovered new exit (range 10) 2050 | -10/Exiles | Entered Mines 2118 | -9/Mines | Assembled infested the area 2123 | -9/Mines | Assisted by a Guerilla fighting off Assembled 2277 | -9/Mines | Learned location of 1 exit from Materials 2293 | -9/Mines | Core integrity fell below 50% 2414 | -9/Mines | Received a Rocket Launcher from a helpful Derelict 2451 | -9/Mines | Met a Derelict shopkeep closing up shop 2555 | -9/Mines | Assisted by bots powering up and referring to "LRC-V3" 2604 | -9/Mines | Learned Materials emergency access door positions 2713 | -9/Mines | Discovered new exit (range 11) 2729 | -9/Mines | Central database locked down 2730 | -9/Mines | Entered Materials 2730 | -8/Materials | Accompanied by 3 allies 2730 | -8/Materials | Evolved 4 slots: Propulsion x1, Utility x3 2731 | -8/Materials | Identified exit to Factory 2958 | -8/Materials | Garrison activated, responded to threat 2989 | -8/Materials | Lost 5 parts (2p3w) 3153 | -8/Materials | Lost 4 parts (1n1u2w) 3274 | -8/Materials | Repaired Shock Bomb Launcher 3310 | -8/Materials | Repaired Rocket Launcher 3344 | -8/Materials | Repaired Arm. Wheel 3359 | -8/Materials | Discovered exit to Factory (range 20) 3373 | -8/Materials | Garrison activated, responded to threat 3407 | -8/Materials | Entered Factory 3407 | -7/Factory | Evolved 2 slots: Power x1, Propulsion x1 3570 | -7/Factory | Fabricated S-27 Virus? 3616 | -7/Factory | Local fabrication network quarantined 3629 | -7/Factory | Fabricated S-27 Virus? 3653 | -7/Factory | Hacking Suite fried by hacking feedback 3807 | -7/Factory | First assault squad dispatched 4134 | -7/Factory | Discovered new exit (range 5) 4136 | -7/Factory | Lost 5 parts (2p1n2u) 4137 | -7/Factory | Identified exit to Factory 4211 | -7/Factory | Core integrity fell below 50% 4241 | -7/Factory | Lost 7 parts (2p2n3w) 4553 | -7/Factory | Discovered exit to Factory (range 6) 4620 | -7/Factory | Entered another Factory area 4620 | -6/Factory | Evolved 2 slots: Propulsion x1, Utility x1 4894 | -6/Factory | Discovered new exit (range 14) 4925 | -6/Factory | Identified exit to Factory 4926 | -6/Factory | Entered another Factory area 4926 | -5/Factory | Evolved 2 slots: Utility x2 5127 | -5/Factory | Lost 3 parts (2n1w) 5668 | -5/Factory | Build established: Scavenger-Mutant 6014 | -5/Factory | Lost 4 parts (1p3n) 6023 | -5/Factory | Destroyed 7 combat bots 6063 | -5/Factory | Discovered new exit (range 21) 6088 | -5/Factory | Identified exit to Factory 6203 | -5/Factory | Discovered new exit (range 6) 6206 | -5/Factory | Identified exit to Extension 6207 | -5/Factory | Entered Extension 6304 | -5/Extension | Rescued a captive Derelict 6304 | -5/Extension | Rescued a captive Derelict 6447 | -5/Extension | Rescued a captive Derelict 6448 | -5/Extension | Rescued a captive Derelict 6507 | -5/Extension | Disrupted transfer network 6628 | -5/Extension | Rescued a captive Derelict 6688 | -5/Extension | Spotted B-75 Beast 7136 | -5/Extension | Rescued a captive Derelict 7170 | -5/Extension | Rescued a captive Derelict 7170 | -5/Extension | Rescued a captive Derelict 7211 | -5/Extension | Rescued A7 7241 | -5/Extension | Rescued a captive Derelict 7242 | -5/Extension | Rescued a captive Derelict 7291 | -5/Extension | Disrupted transfer network 7310 | -5/Extension | Discovered exit to Factory (range 10) 7311 | -5/Extension | Discovered new exit (range 6) 7361 | -5/Extension | Entered Cetus 7361 | -5/Cetus | Accompanied by 4 allies (A7) 7366 | -5/Cetus | Acquired a Cetus Manufacturing Module code from A7 7375 | -5/Cetus | Spotted Cetus Guard 7375 | -5/Cetus | Spotted Cetus Guard 7375 | -5/Cetus | Spotted Cetus Guard 7375 | -5/Cetus | Spotted Cetus Guard 7380 | -5/Cetus | Allies destroyed Cetus Guard 7387 | -5/Cetus | Allies destroyed Cetus Guard 7393 | -5/Cetus | Destroyed Cetus Guard 7395 | -5/Cetus | Destroyed Cetus Guard 7454 | -5/Cetus | Started Cetus Manufacturing Module 7463 | -5/Cetus | Escorted A7 to Cetus Mainframe 7472 | -5/Cetus | Discovered new exit (range 22) 7479 | -5/Cetus | Manufactured an Enhanced Grunt 7500 | -5/Cetus | Spotted Cetus Guard 7500 | -5/Cetus | Spotted Cetus Guard 7500 | -5/Cetus | Spotted Cetus Guard 7500 | -5/Cetus | Spotted Cetus Guard 7502 | -5/Cetus | Discovered exit to Factory (range 22) 7504 | -5/Cetus | Manufactured an Enhanced Grunt 7510 | -5/Cetus | Allies destroyed Cetus Guard 7511 | -5/Cetus | Allies destroyed Cetus Guard 7514 | -5/Cetus | Destroyed Cetus Guard 7514 | -5/Cetus | Allies destroyed Cetus Guard 7527 | -5/Cetus | Met Revision 17 7529 | -5/Cetus | Manufactured an Enhanced Grunt 7554 | -5/Cetus | Manufactured an Enhanced Grunt 7579 | -5/Cetus | Manufactured an Enhanced Grunt 7673 | -5/Cetus | Entered Archives 7673 | -5/Archives | Accompanied by 8 allies (A7) 7678 | -5/Archives | Received a hacking code to weaken MAIN.C 7691 | -5/Archives | Found Prototype Device 7691 | -5/Archives | Identified Exp. Thermal Shield 7723 | -5/Archives | Discovered new exit (range 22) 7747 | -5/Archives | Discovered exit to Factory (range 17) 8931 | -5/Archives | Discovered new exit (range 16) 9144 | -5/Archives | Entered Hub_04(d) 9144 | -5/Hub_04(d) | Accompanied by 5 allies 9283 | -5/Hub_04(d) | Core integrity fell below 50% 9444 | -5/Hub_04(d) | First assault squad dispatched 9697 | -5/Hub_04(d) | Discovered exit to Factory (range 17) 9733 | -5/Hub_04(d) | Network Hub disabled 9769 | -5/Hub_04(d) | Spotted Lightning 9769 | -5/Hub_04(d) | Spotted Lightning 9769 | -5/Hub_04(d) | Spotted Lightning 9774 | -5/Hub_04(d) | Spotted Lightning 9776 | -5/Hub_04(d) | Spotted Lightning 9777 | -5/Hub_04(d) | Spotted Lightning 9778 | -5/Hub_04(d) | Entered Factory 9778 | -4/Factory | Evolved 2 slots: Propulsion x1, Utility x1 10131 | -4/Factory | Fabricated Hcp. Storage Unit (x1) 10163 | -4/Factory | Identified exit to Upper Caves 10163 | -4/Factory | Identified exit to Armory 10424 | -4/Factory | Destroyed 11 combat bots 10532 | -4/Factory | Lost 4 parts (2p1n1w) 10778 | -4/Factory | First assault squad dispatched 10801 | -4/Factory | Entered Upper Caves 11729 | -4/Upper Caves | Learned location of Testing (-2) 11796 | -4/Upper Caves | Encountered a Warlord checkpoint 11828 | -4/Upper Caves | Learned 4 Research zone layouts 11841 | -4/Upper Caves | Discovered new exit (range 9) 11854 | -4/Upper Caves | Entered another Upper Caves area 11869 | -4/Upper Caves | Discovered new exit (range 19) 11965 | -4/Upper Caves | Encountered a Warlord checkpoint 12234 | -4/Upper Caves | Discovered new exit (range 14) 12363 | -4/Upper Caves | Attracted the attention of an 0b10 checkpoint 12488 | -4/Upper Caves | Entered Warlord 12556 | -4/Warlord | System corruption cleaned by Quarantine Array 12938 | -4/Warlord | Visited the Vortex Lab 12948 | -4/Warlord | Warlord's base attacked by MAIN.C 12955 | -4/Warlord | Found Prototype Piercing Weapon 12966 | -4/Warlord | Met EX-DEC 12966 | -4/Warlord | Found Prototype Energy Cannon 12978 | -4/Warlord | Found Prototype Piercing Weapon 13089 | -4/Warlord | Met Warlord 13125 | -4/Warlord | Identified Vortex Lance (x2) 13135 | -4/Warlord | Found Prototype Device 13147 | -4/Warlord | Identified Exp. Focal Shield 13151 | -4/Warlord | Found Prototype Processor 13151 | -4/Warlord | Identified Exp. Targeting Computer 13168 | -4/Warlord | Found Prototype Hackware 13175 | -4/Warlord | Found Prototype Processor 13185 | -4/Warlord | Found Prototype Reactor 13298 | -4/Warlord | Warlord forces counterattacked 13346 | -4/Warlord | Spotted Striker 13404 | -4/Warlord | Opened side exit 13436 | -4/Warlord | Discovered new exit (range 8) 13451 | -4/Warlord | Entered Proximity Caves 13909 | -3/Proximity Caves | Found Prototype Launcher 13910 | -3/Proximity Caves | Identified Rocket Array 13914 | -3/Proximity Caves | Found Rocket Array 14080 | -3/Proximity Caves | Discovered new exit (range 16) 14110 | -3/Proximity Caves | Entered Research 14110 | -3/Research | Evolved 2 slots: Weapon x2 14111 | -3/Research | Identified exit to Quarantine 14293 | -3/Research | Found Fusion Bomb Launcher 14310 | -3/Research | Revision forces began assault on 0b10 14359 | -3/Research | Met up with Revision 17++ 14468 | -3/Research | Build established: Hauler-Gunner 14490 | -3/Research | Found Prototype Device 14490 | -3/Research | Identified Exp. Shield Generator 14497 | -3/Research | Found Exp. Shield Generator 14810 | -3/Research | Research terminal network offline 15498 | -3/Research | Spotted Striker 15503 | -3/Research | Spotted Executioner 15514 | -3/Research | Destroyed Striker 15564 | -3/Research | Identified Exp. Core Analyzer 15646 | -3/Research | Entered Quarantine 15688 | -3/Quarantine | Identified System Mapper 15766 | -3/Quarantine | Found Alien Artifact 15832 | -3/Quarantine | Identified Core Reset Matrix 15833 | -3/Quarantine | Identified BFG-9k Vortex Edition 15841 | -3/Quarantine | Identified Vortex Chain Reactor 15907 | -3/Quarantine | Found Alien Slashing Weapon 15937 | -3/Quarantine | Found Alien Artifact 15951 | -3/Quarantine | Discovered new exit (range 9) 16045 | -3/Quarantine | Cryocooling Duct disabled 16060 | -3/Quarantine | Ambient heat levels rising (+20) 16060 | -3/Quarantine | Non-combat units ordered to evacuate 16224 | -3/Quarantine | Repaired Hcp. Storage Unit 16747 | -3/Quarantine | Identified Sigix Broadsword 17391 | -3/Quarantine | Spotted Fortress 17517 | -3/Quarantine | Discovered new exit (range 5) 17526 | -3/Quarantine | Entered Section 7 17546 | -3/Section 7 | Build established: Hauler-Mutant 17600 | -3/Section 7 | Found Alien Artifact 17600 | -3/Section 7 | Identified Integrated Dissipator 17600 | -3/Section 7 | Installed Integrated Dissipator, increased core heat dissipation (+20) 17662 | -3/Section 7 | Spotted B-86 Titan 17754 | -3/Section 7 | Repaired Broken Biometal Medium Treads 17951 | -3/Section 7 | Identified exit to Research 18099 | -3/Section 7 | Found Integrated Dissipator 18099 | -3/Section 7 | Installed Integrated Dissipator, increased core heat dissipation (+20) 18210 | -3/Section 7 | System corruption reached 10% 18361 | -3/Section 7 | Identified Phase Redirector 18776 | -3/Section 7 | First assault squad dispatched 19092 | -3/Section 7 | System corruption reached 30% 19092 | -3/Section 7 | Entered Research 19092 | -2/Research | Warlord forces began assault on 0b10 19092 | -2/Research | Evolved 2 slots: Power x1, Utility x1 19107 | -2/Research | Identified exit to Testing 19118 | -2/Research | Found Antimissile System 19122 | -2/Research | Lost 4 parts (1n2u1w) 19202 | -2/Research | Research machine network offline 19238 | -2/Research | Met up with Warlord 19274 | -2/Research | Borebot progress halted 19328 | -2/Research | Borebot progress halted 19397 | -2/Research | Spotted Striker 19411 | -2/Research | Spotted Striker 19420 | -2/Research | Destroyed Striker 19430 | -2/Research | Destroyed Striker 19454 | -2/Research | Spotted Striker 19476 | -2/Research | Destroyed Striker 19541 | -2/Research | Destroyed 9 combat bots 19648 | -2/Research | Spotted Striker 19665 | -2/Research | Entered Testing 19749 | -2/Testing | Found Prototype Energy Gun 19749 | -2/Testing | Identified Tachyon Dispersion Ray 19847 | -2/Testing | Found Prototype Processor 19847 | -2/Testing | Identified Exp. Terrain Scan Processor 19858 | -2/Testing | Garrison activated, responded to threat 19931 | -2/Testing | Spotted Striker 19946 | -2/Testing | First assault squad dispatched 19969 | -2/Testing | Found Prototype Launcher 19969 | -2/Testing | Identified Point Singularity Launcher 19986 | -2/Testing | Found Point Singularity Launcher 20054 | -2/Testing | Found Prototype Reactor 20054 | -2/Testing | Identified Zero-point Reactor 20140 | -2/Testing | Found Prototype Processor 20140 | -2/Testing | Identified Exp. Signal Interpreter 20192 | -2/Testing | System corruption reached 10% 20255 | -2/Testing | Build established: Generator-Mutant 20308 | -2/Testing | Lost 3 parts (3u) 20357 | -2/Testing | Garrison activated, responded to threat 20379 | -2/Testing | Scanned by Researcher 20464 | -2/Testing | Destroyed 10 combat bots 20483 | -2/Testing | Core integrity fell below 50% 20508 | -2/Testing | Identified exit to Garrison 20508 | -2/Testing | Entered Garrison 20535 | -2/Garrison | Lost 18 parts (5p6n4u3w) 20574 | -2/Garrison | Triggered checkpoint 20677 | -2/Garrison | Build established: Hauler-Mutant 20677 | -2/Garrison | Core integrity fell below 20% 20693 | -2/Garrison | Lost 3 parts (1n1u1w) 20712 | -2/Garrison | Destroyed by S-43 Plague with Heavy Machine Gun Last Messages --------------- 20585_ />QCP74DHCM7|PT2=EC|JDR7XWE&UAPB5G>F 20613_ System corrupted: IFF burst signal emitted. 20634_ System corrupted: Component data lost. 20650_ Slammed into S-43 Plague. 20652_ Arm. Medium Treads destroyed. 20656_ Imp. Fusion Compressor destroyed. 20662_ Sigix Broadsword destroyed. 20663_ Slammed into S-43 Plague. 20668_ System corrupted: Matter fused (-5). 20674_ Slammed into S-43 Plague. 20686_ System corrupted: Heat flow error (+172). 20697_ Dropped Exp. Energy Well. 20698_ Extracted 30 energy. 20698_ Exp. Shield Generator destroyed. 20699_ Extracted 7 energy. 20699_ Slammed into S-43 Plague. 20703_ Hcp. Storage Unit destroyed. 20707_ 1 FP%XXQZG4WJEEK6AT1U>VKH0ZI&PZ3SD=QXBL 20710_ Slammed into S-43 Plague. [Achievement: 40k Club] Map ----- +----------------------------------------------------+ | ?????????????????????????????????????????????????? | | ?????????????????????????????????????????????????? | | ?????????????????????????????????????????????????? | | ?????????????????????????????????????????????????? | | ?????????????????????????????????????????????????? | | ?????????????????????????????????????????????????? | | ?????????????????????????????????????????????????? | | ?????????????????????????????????????????????????? | | ?????????????????????????????????????????????????? | | ?????????????????????????????????????????????????? | | ?????????????????????????????????????????????????? | | ?????????????????????????????????????????????????? | | ?????????????????????????????????????????????????? | | ??????????? ## ##########???????????????????? | | ??????????? #???????????????????? | | ??????????? #???????????????????? | | ??????????? ####### #???????????????????? | | ??????????????????????# #?# #???????????????????? | | ??????????????????????# #?# #???????????????????? | | ??????????????????????# ?# #???????????????????? | | ??????????????????????# #?# #???????????????????? | | ?????????????????????? #?# #???????????????????? | | ??????????????????????# #?# #???????????????????? | | ????????????????# ????# #?# #???????????????????? | | ????????????????# ####;### ##############??????? | | ????????????????# @ ^ #??????? | | ????????????????# ! s s #??????? | | ????????????????#######s########+####### #??????? | | ??????????????????????# #??????????????# #??????? | | ??????????????????????# #??????????????# #??????? | | ??????????????????????# #??????????????# #??????? | | ??????????????????????# #??????????????# #??????? | | ??????????????????????# #??????????????# ###????? | | ??????????????????????# #??????????????# #????? | | ??????????????????????# #??????????????# #????? | | ??????????????????????# #??????????????# #????? | | ??????????????????????# ??????????????######????? | | ??????????????????????###????????????????????????? | | ?????????????????????????????????????????????????? | | ?????????????????????????????????????????????????? | | ?????????????????????????????????????????????????? | | ?????????????????????????????????????????????????? | | ?????????????????????????????????????????????????? | | ?????????????????????????????????????????????????? | | ?????????????????????????????????????????????????? | | ?????????????????????????????????????????????????? | | ?????????????????????????????????????????????????? | | ?????????????????????????????????????????????????? | | ?????????????????????????????????????????????????? | | ?????????????????????????????????????????????????? | +----------------------------------------------------+ Best States ------------- Heat Dissipation 108 Coolant Potential 100 Energy Generation 66 Energy Capacity 1485 Matter Stores 300 Matter Capacity 300 Sight Range 22 Robot Scan Range 13 Terrain Scan Range 20 Terrain Scan Density 210 Jamming Range 16 Additional Mass Support 16 Armor Coverage 1200 Melee Speed Boost 20 Evasion (%) 57 Targeting Accuracy 20 Core Analysis 15 Recoil Reduction 6 Offensive Hacking 32 Defensive Hacking 12 Item Schematics ----------------- Hcp. Storage Unit | -10/Materials | Hacked Biometal Heavy Treads | -3/Quarantine | Hacked Robot Schematics ------------------ None Fabricated ------------ S-27 Virus | x4 | -7/Factory | Preloaded S-27 Virus | x4 | -7/Factory | Preloaded Hcp. Storage Unit | x1 | -4/Factory Alien Tech Used ----------------- Sigix Broadsword Integrated Dissipator Phase Redirector Achievements -------------- 40k Club All-out Warlord Maximum Efficiency Packrat Preemptive Strike Revising The Future Revolutionary Research Total Silence Challenges ------------ None Game ------ Seed DirtyHypervelocityMachine Manual? 0 Play Time 05:52:19 Cumulative 21.9 hours Start 2021.08.24 @ 02:21:41 End 2021.08.26 @ 18:27:00 Sessions 15 Manual Loads 0 Difficulty Rogue Special Mode None Game No. 6 Rogue 6 Adventurer 0 Explorer 0 Win Type - Total 0 Types 0/0/0/0/0/0/0/0/0 Lore% 15 Gallery% 34 Achievement% 38 Wizard Run 0 Options --------- ASCII 0 Keyboard 0 Movement Numpad Keybinds 0 Fullscreen 2 Font 18/TerminusBold Map View 76x50 Tactical HUD 1 Map Filters NONE Filters NONE Steam 0 RUN: 14736379-4573-4797-841d-3df644f8d1c3